Cogmind - Beta 16.1 @@@ ROGUE MODE // 2026.06.22 @ 18:44:57 Player: Lolterzard Result: Destroyed by G-47 Trooper with Particle Gun Performance ------------- Evolutions (0) 0 Regions Visited (2) 400 Robots Destroyed (19) 95 Value Destroyed (313) 313 Prototype IDs (0) 0 Alien Tech Used (0) 0 Bonus (0) 0 TOTAL SCORE: 808 Bonus ------- None Cogmind --------- Core Integrity 0/250 Matter 296/300 Energy 250/250 System Corruption 0% Temperature Cool (15) Movement Treading (160) Location -10/Mines Parts ------- > --- POWER (1) -------- Ion Engine > --- PROPULSION (2) --- Light Treads Light Treads > --- UTILITY (2) ------ Large Storage Unit Transport Network Coupler > --- WEAPON (2) ------- Light Assault Rifle Light Assault Rifle > --- INVENTORY (15) --- Light Treads Compact Wheel Compact Wheel Hover Unit Hover Unit Hover Unit Medium Storage Unit Core Shielding Tractor Beam Light Assault Rifle Grenade Launcher Peak State ------------ > --- POWER ------------ Ion Engine > --- PROPULSION ------- Light Treads Light Treads > --- UTILITY ---------- Small Storage Unit Medium Storage Unit > --- WEAPON ----------- Light Assault Rifle Light Assault Rifle > --- INVENTORY -------- Ion Engine Light Treads Light Treads Compact Wheel Compact Wheel Transport Network Coupler Tractor Beam Light Assault Rifle Light Assault Rifle Grenade Launcher [Rating: 8] Favorites ----------- Power Ion Engine Engine Ion Engine Propulsion Light Treads Treads Light Treads Utility Transport Network Coupler Storage Large Storage Unit Processor Transport Network Coupler Weapon Light Assault Rifle Ballistic Gun Light Assault Rifle Launcher Grenade Launcher Build | -11 -10 -10 ------- Run | Yrd Mat Min Slots Evolved . | . . . Power . | . . . Propulsion . | . . . Utility . | . . . Weapon . | . . . Parts Attached 14 | 6 6 2 Power 2 | 1 . 1 Engine 2 | 1 . 1 Core . | . . . Reactor . | . . . Propulsion 4 | 2 1 1 Treads 4 | 2 1 1 Leg . | . . . Wheel . | . . . Hover . | . . . Flight . | . . . Utility 4 | 1 3 . Device . | . . . Storage 3 | 1 2 . Processor 1 | . 1 . Hackware . | . . . Protection . | . . . Artifact . | . . . Weapon 4 | 2 2 . Energy Gun . | . . . Energy Cannon . | . . . Ballistic Gun 3 | 2 1 . Ballistic Cannon . | . . . Launcher 1 | . 1 . Special Weapon . | . . . Impact Weapon . | . . . Slashing Weapon . | . . . Piercing Weapon . | . . . Special Melee Weapon . | . . . Unidentified Prototypes . | . . . Parts Lost 4 | . 1 3 Power 1 | . . 1 Propulsion 2 | . 1 1 Utility . | . . . Weapon 1 | . . 1 Highest Loss Streak 3 | . 1 3 To Critical Strikes . | . . . Average Backups 9 | 2 9 11 Power . | . 1 . Propulsion 4 | 1 4 6 Utility 1 | . 1 2 Weapon 2 | . 2 2 Tool/Special . | . . . Unused Backups 9 | . . 9 Power . | . . . Propulsion 6 | . . 6 Utility 2 | . . 2 Weapon 1 | . . 1 Tool/Special . | . . . Average Slot Usage (%) 98 | . 98 95 Engine 13 | . 14 11 Treads 27 | . 27 26 Storage 16 | . 17 14 Processor 10 | . 10 14 Ballistic Gun 27 | . 27 27 Peak Build Rating 8 | 6 8 8 Average Rating 7 | 5 7 7 On Entrance 4 | . 6 8 Avg Prop Armor Cover (%) 22 | 22 . . Naked Turns . | . . . Heaviest Build 27 | 12 27 27 Greatest Support 40 | 40 40 40 Greatest Overweight (x) 3 | 3 1 1 Average Overweight (x) . | . . . Largest Inventory Capacity 15 | 8 15 15 Average Capacity 12 | 7 11 15 Most Carried 14 | 4 14 13 Average Carried 9 | 2 9 11 Final Capacity 15 | 8 15 15 Final Carried 13 | 4 13 11 Class Distribution -------------------- 100% | Mutant Dominant Class ---------------- Mutant | -10/Materials Mutant | -10/Mines Resources | -11 -10 -10 ----------- Run | Yrd Mat Min Matter Collected 549 | 195 306 48 Remotely . | . . . Salvage Created 578 | . 525 53 Parts 38 | . 33 5 Haulers Intercepted 2 | . 2 . Recyclers Shooed 1 | . 1 . Parts Field Recycled . | . . . Retrieved Matter . | . . . Parts Self-Destructed . | . . . Prevented . | . . . Parts Restored . | . . . Kills | -11 -10 -10 ------- Run | Yrd Mat Min Combat Hostiles Destroyed 14 | . 11 3 Guns 14 | . 11 3 Classes Destroyed 6 | . 6 . Worker 1 | . 1 . Hauler 2 | . 2 . Recycler 1 | . 1 . Watcher 1 | . 1 . Swarmer 9 | . 6 3 Grunt 5 | . 5 . Best Kill Streak 3 | . 3 2 Combat Bots Only 3 | . 3 2 Max Kills in Single Turn 1 | . 1 1 Gunslinging . | . . . Exploded . | . . . Melee . | . . . Uniques/NPCs Destroyed . | . . . Combat | -11 -10 -10 -------- Run | Yrd Mat Min Hostile Shots Fired 115 | . 78 37 Missed 33 | . 22 11 Hits 82 | . 56 26 Projectile 82 | . 56 26 Damage Taken 857 | . 647 210 Core 257 | . 203 54 Absorbed by Shields . | . . . Core Remaining (%) 100 | 100 . . Volleys Fired 87 | . 73 14 Largest 2 | . 2 2 Hottest 40 | . 40 40 Shots Fired 168 | . 141 27 Gun 163 | . 136 27 Cannon . | . . . Launcher 5 | . 5 . Special . | . . . Kinetic 163 | . 136 27 Thermal . | . . . Explosive 5 | . 5 . Electromagnetic . | . . . Robot Hit Streak 6 | . 6 4 Robot Miss Streak 6 | . 6 3 Penetration Max . | . . . Secondary Targets 1 | . . 1 Max Gunslinging Chain 1 | . . 1 Shots Hit Robots 87 | . 72 15 Core Hits 45 | . 39 6 Critical Kills . | . . . Critical Parts Destroyed . | . . . Critical Strikes . | . . . Melee Attacks . | . . . Impact . | . . . Slashing . | . . . Piercing . | . . . Sneak Attacks . | . . . Combat Hostiles . | . . . Follow-up Attacks . | . . . Damage Inflicted 865 | . 738 127 Guns 727 | . 600 127 Cannons . | . . . Explosions 138 | . 138 . Melee . | . . . Ramming . | . . . Kinetic 727 | . 600 127 Thermal . | . . . Explosive 138 | . 138 . Electromagnetic . | . . . Impact . | . . . Slashing . | . . . Piercing . | . . . Highest Corruption . | . . . Average Corruption . | . . . Corruption Purged . | . . . Corruption Blocked . | . . . Overload Shots . | . . . Overflow Damage 9 | . 9 . Projectiles . | . . . Explosions 9 | . 9 . Melee . | . . . Knockbacks . | . . . Impact . | . . . Kinetic . | . . . Secondary . | . . . Self-Inflicted Damage . | . . . Shots . | . . . Rammed . | . . . Targets Rammed . | . . . Kicked . | . . . Crushed . | . . . Highest Temperature 18 | . 18 6 Average Temperature 9 | . 9 6 Received Heat Transfer 252 | . 237 15 Siege Activations . | . . . Martial Activations . | . . . Shielding Activations . | . . . Robots Disrupted . | . . . Combat Hostiles . | . . . Robots Corrupted . | . . . Combat Hostiles . | . . . Parts Fried . | . . . Impact Corruptions . | . . . Robots Melted . | . . . Combat Hostiles . | . . . Parts Melted . | . . . Heat Transferred . | . . . Parts Sabotaged . | . . . Parts Stolen . | . . . Parts Stripped . | . . . Power Chain Reactions . | . . . Alert | -11 -10 -10 ------- Run | Yrd Mat Min Maximum Alert Level . | . . . Low Security (%) 100 | 100 100 100 Level 1 . | . . . Level 2 . | . . . Level 3 . | . . . Level 4 . | . . . Level 5 . | . . . High Security . | . . . Max Security . | . . . Peak Influence 141 | . 141 85 Initial 45 | . . 45 Average 34 | . 36 37 Influence Increases 458 | . 373 85 Destroy 0b10 Robot/C 280 | . 220 60 Destroy 0b10 Robot/NC 25 | . 25 . Destroy Leader 66 | . 56 10 Successful Hack 7 | . 7 . Destroy Structure 20 | . 20 . Lose Combat Pursuer 60 | . 45 15 Influence Decreases 448 | . 256 192 Entered New Map 72 | . . 72 Time Decay 336 | . 246 90 Lost Part 40 | . 10 30 Squads Dispatched 2 | . 2 . Investigation . | . . . Extermination . | . . . Reinforcement 2 | . 2 . Assault . | . . . Garrison . | . . . Intercept . | . . . Searches Triggered . | . . . Construction Impeded . | . . . Haulers Reinforced . | . . . Active Scanning Responses . | . . . Cargo Convoy Interrupts . | . . . Stealth | -11 -10 -10 --------- Run | Yrd Mat Min Distress Signals 1 | . 1 . Communications Jammed . | . . . Distress Signals . | . . . Times Spotted 29 | . 23 6 Peak Tracking Total 4 | . 4 3 Tactical Retreats 4 | . 3 1 Traps | -11 -10 -10 ------- Run | Yrd Mat Min Traps Triggered 1 | . 1 . Indirectly . | . . . Trap Hack Attempts . | . . . Triggered . | . . . Disarmed . | . . . Reprogrammed . | . . . Reused . | . . . Traps Extracted . | . . . Installed . | . . . Triggered . | . . . Machines | -11 -10 -10 ---------- Run | Yrd Mat Min Machines Disabled . | . . . Max in Single Turn . | . . . Machines Repaired . | . . . Machines Dismantled . | . . . Machines Sabotaged . | . . . Overloaded Fab Kills . | . . . Hacking | -11 -10 -10 --------- Run | Yrd Mat Min Machines Accessed 2 | . 2 . Terminals 2 | . 2 . Fabricators . | . . . Repair Stations . | . . . Recycling Units . | . . . Scanalyzers . | . . . Garrison Access . | . . . Total Hacks 5 | . 5 . Successful 3 | . 3 . Failed 2 | . 2 . Catastrophic . | . . . Database Lockouts . | . . . Manual . | . . . Terminals 5 | . 5 . Fabricators . | . . . Repair Stations . | . . . Recycling Units . | . . . Scanalyzers . | . . . Garrison Access . | . . . Terminal Hacks 3 | . 3 . Alert Level 1 | . 1 . Locate Traps 1 | . 1 . Security Status 1 | . 1 . Fabricator Hacks . | . . . Repair Station Hacks . | . . . Recycling Unit Hacks . | . . . Scanalyzer . | . . . Garrison Access Hacks . | . . . Unauthorized Hacks . | . . . Terminals . | . . . Fabricators . | . . . Repair Stations . | . . . Recycling Units . | . . . Scanalyzers . | . . . Garrison Access . | . . . Data Cores Recovered . | . . . Used . | . . . Hacking Detections 1 | . 1 . Full Trace Events . | . . . Feedback Events . | . . . Feedback Blocked . | . . . Robot Schematics Acquired . | . . . Robots Built . | . . . Authchips . | . . . Time . | . . . Total Robot Build Rating . | . . . Part Schematics Acquired . | . . . Parts Built . | . . . Authchips . | . . . Time . | . . . Total Part Build Rating . | . . . Part Studies Acquired . | . . . Parts Repaired . | . . . Time . | . . . Parts Recycled . | . . . Recycled Matter . | . . . Retrieved Matter . | . . . Retrieved Components . | . . . Parts Scanalyzed . | . . . Part Schematics Acquired . | . . . Parts Damaged . | . . . Bothacking | -11 -10 -10 ------------ Run | Yrd Mat Min Used RIF Installer . | . . . Robots Hacked . | . . . Non-combat . | . . . Combat . | . . . Robot Hacks Applied . | . . . Relay Couplers Released . | . . . Fabnet Peak Effective % . | . . . Robots Rewired . | . . . Allies Hacked . | . . . Hacks Repelled . | . . . Allies | -11 -10 -10 -------- Run | Yrd Mat Min Total Allies . | . . . Largest Group . | . . . Highest-Rated Group . | . . . Highest-Rated Ally . | . . . Total Orders . | . . . Ally Attacks . | . . . Total Damage . | . . . Kills . | . . . Allies Corrupted . | . . . Allies Melted . | . . . Intel | -11 -10 -10 ------- Run | Yrd Mat Min Active Infowar (turns) 723 | . 528 195 T.N.C. 723 | . 528 195 Robot Analysis Total . | . . . Derelict Logs Recovered 1 | . . 1 Drone Launches . | . . . Drone Recoveries . | . . . Exploration | -11 -10 -10 ------------- Run | Yrd Mat Min Turns Passed 994 | 71 728 195 Spaces Moved 464 | 44 323 97 Core 16 | 16 . . Treads 448 | 28 323 97 Legs . | . . . Wheels . | . . . Hover . | . . . Flight . | . . . Fastest Speed 50 | 50 160 160 Average Speed 158 | 134 160 160 Slowest Speed 240 | 200 240 240 Overloaded Moves . | . . . Propulsion Burnouts . | . . . Robots Hopped . | . . . Potential Cave-ins . | . . . Cave-ins Triggered . | . . . Exploration Rate (%) 33 | 4 69 28 Regions Visited 2 Branch Regions 1 Pre-discovered Areas . | . . . Known Exits Taken . | . . . Unknown Exits Taken 2 | 1 1 . Scrap Searched 1 | . . 1 Spaces Dug . | . . . Terrain Destroyed 24 | . 24 . Melee . | . . . Projectile . | . . . AOE 24 | . 24 . Terrain Rammed . | . . . Walls Destroyed . | . . . Machines Disabled . | . . . Actions | -11 -10 -10 --------- Run | Yrd Mat Min Total 585 | 53 417 115 Wait 4 | . 4 . Move 462 | 43 322 97 Hop . | . . . Pick Up 15 | 4 10 1 Fast Attach 7 | 6 1 . Attach 6 | . 3 3 Detach 1 | . 1 . Swap 2 | . 2 . Drop 1 | . 1 . Fire 87 | . 73 14 Melee . | . . . Ram . | . . . Kick . | . . . Crush . | . . . Escape Stasis . | . . . Rewire . | . . . Trap . | . . . Miscellaneous . | . . . Route ------- -11/Scrapyard -10/Materials (discovered 3 exits: [*Mat x2] / [*Min]) -10/Mines History --------- Turn | Location | Event 9 | -11/Scrapyard | Discovered new exit (range 15) 72 | -11/Scrapyard | Entered Materials 311 | -10/Materials | Build established: Mutant 363 | -10/Materials | Discovered new exit (range 16) 460 | -10/Materials | Discovered new exit (range 11) 564 | -10/Materials | Discovered new exit (range 13) 655 | -10/Materials | Core integrity fell below 50% 743 | -10/Materials | Core integrity fell below 20% 800 | -10/Materials | Entered Mines 860 | -10/Mines | Lost 3 parts (1p1n1w) 886 | -10/Mines | Learned Materials terminal intel 995 | -10/Mines | Destroyed by G-47 Trooper with Particle Gun Last Messages --------------- 00815_ Lgt. Treads destroyed. 00820_ Acquired 9 matter. 00824_ Acquired 2 matter. 00829_ Lgt. Assault Rifle destroyed. 00831_ Acquired 1 matter. 00833_ S-10 Pest destroyed. 00839_ Acquired 18 matter. 00841_ Acquired 13 matter. 00859_ K-01 Serf collects debris. 00861_ K-01 Serf cleans the Plasma Injector. 00863_ K-01 Serf collects debris. 00886_ Acquired derelict log, extracted data. Data stored: Materials terminal intel. 00887_ Searching scrap... 00887_ Found Lrg. Matter Pod. 00887_ Found Core Shielding. 00887_ Found 42 Matter. 00889_ K-01 Serf collects debris. 00891_ Acquired Core Shielding. 00893_ K-01 Serf collects debris. Map ----- +----------------------------------------------------+ | | | | | | | ?????????????????????????????????????????????????? | | ?????????????????????????????????????????????????? | | ?????????????????????????????????????????????????? | | ###????????####??????????????????????????????????? | | #??????## =##?????????????????????????????????? | | #?????## =%#?????????????????????????????????? | | " ####### [ #?????????????????????????????????? | | " = *##?????????????????????????????????? | | " ##### ##??????????????????????????????????? | | #???# #?????????? #???????????????????????? | | " #???## ##?????????? ##?????????????????????? | | " #????####??????????? #?????????????????????? | | " #??????????????????? ?????????????????????? | | #??????????????????? ?????????????????????? | | " #???????????????????# #?????????????????????? | | " #######?????????????# #?????????????????????? | | " ! #?????????????# #?????????????????????? | | % #?????????????# #?????????????????????? | | ##### #???????###???# #?????????????????????? | | ##???# #???????# ??? $#?????????????????????? | | ????## #???????# #???# #?????????????????????? | | ???## ###?????# #???# #?????????????????????? | | ??## ##????# #???#@ #?????????????????????? | | ??# #???## #???# #?????????????????????? | | ##??# #??## ##??# #?????????????????????? | | ????## #### ##?# #?????????????????????? | | ?????# ## ### #?????????????????????? | | ?????# ##gg#?????????????????????? | | ?????# #?????????????????????? | | ?????# #?????????????????????? | | ?????# # ######?????????????????????? | | ?????# ## #??????????????????????????? | | #???## #### #### #??????????????????????????? | | #### ##??# #??# #??????????????????????????? | | ##???# #??# #??????????????????????????? | | ##????# #??# #??????????????????????????? | | #????## #??# #??????????????????????????? | | ## #???## #?? #??????????????????????????? | | ?## #???# #?? ??????????????????????????? | | ??## ##???# ? ??????????????????????????? | | ???####????## ??????????????????????????? | | ????????????### ??????????????????????????? | | ??????????????## ?????????????????????????? | | ????????????????# ##????????????????????????? | | ?????????????????# ##?????????????????????????? | | ??????????????????# ##??????????????????????????? | | ??????????????????? #???????????????????????????? | +----------------------------------------------------+ Best States ------------- Heat Dissipation 25 Energy Generation 10 Energy Capacity 250 Matter Stores 300 Matter Capacity 300 Sight Range 16 Terrain Scan Density 10 Evasion (%) 50 Recoil Reduction 2 Item Schematics ----------------- None Robot Schematics ------------------ None Fabricated ------------ Nothing Repaired ---------- Nothing Studied --------- None Alien Tech Used ----------------- None Achievements -------------- None Challenges ------------ None Game ------ Seed ThrusterSwordGuard Manual? 0 Play Time 00:05:50 Cumulative 45.1 hours Start 2026.06.22 @ 18:39:55 End 2026.06.22 @ 18:44:57 Sessions 1 Manual Loads 0 Difficulty Rogue Special Mode None Game No. 85 Rogue 85 Adventurer 0 Explorer 0 Win Type - Total 0 Types 0/0/0/0/0/0/0/0/0/0 Lore% 23 Gallery% 23 Achievement% 21 Wizard Run 0 Options --------- Layout 0 ASCII 0 Keyboard 0 Movement Mouse Keybinds 0 Fullscreen 2 Font 24/Smallcaps Map View 76x50 Zoom Use 0% Tactical HUD 1 Map Filters NONE Filters NONE Steam 1 RUN: cd8679ae-a70e-468c-ba8d-b70913f7f43f